[Event "*** Titled Tuesday Blitz"]
[Site "Chess.com"]
[Date "2018.06.05"]
[Round "2"]
[White "shrek4life02"]
[Black "TableVolleyball"]
[Result "0-1"]
[WhiteElo "2432"]
[BlackElo "2493"]
[TimeControl "180+2"]
[EndTime "13:23:45 PDT"]
[Termination "TableVolleyball won on time"]

1. d4 {[%clk 0:03:01.9]} 1... Nf6 {[%clk 0:02:58.4]} 2. Bf4 {[%clk 0:03:02.8]}
2... c5 {[%clk 0:02:49.9]} 3. e3 {[%clk 0:03:03.3]} 3... d5 {[%clk 0:02:49]} 4.
Nf3 {[%clk 0:03:03]} 4... Nc6 {[%clk 0:02:48.4]} 5. Bd3 {[%clk 0:03:03.5]} 5...
Bg4 {[%clk 0:02:45.1]} 6. c3 {[%clk 0:03:04]} 6... a6 {[%clk 0:02:44.3]} 7. Nbd2
{[%clk 0:03:04.9]} 7... e6 {[%clk 0:02:40.1]} 8. h3 {[%clk 0:03:06.2]} 8... Bxf3
{[%clk 0:02:38]} 9. Nxf3 {[%clk 0:03:07.2]} 9... Bd6 {[%clk 0:02:33]} 10. O-O
{[%clk 0:03:01.9]} 10... Bxf4 {[%clk 0:02:30.7]} 11. exf4 {[%clk 0:03:03.3]}
11... c4 {[%clk 0:02:29.9]} 12. Bc2 {[%clk 0:03:03.3]} 12... O-O {[%clk
0:02:29.4]} 13. Ne5 {[%clk 0:03:03.6]} 13... Ne7 {[%clk 0:02:27.5]} 14. Qe2
{[%clk 0:02:51.2]} 14... a5 {[%clk 0:02:25.9]} 15. Kh2 {[%clk 0:02:45.9]} 15...
b5 {[%clk 0:02:24.4]} 16. g4 {[%clk 0:02:46.7]} 16... Nd7 {[%clk 0:02:22.6]} 17.
Rae1 {[%clk 0:02:43.9]} 17... b4 {[%clk 0:02:20.3]} 18. Bb1 {[%clk 0:02:40.9]}
18... Ng6 {[%clk 0:02:16.3]} 19. Qe3 {[%clk 0:02:37.3]} 19... Qc7 {[%clk
0:02:09.1]} 20. Nxd7 {[%clk 0:02:30.1]} 20... Qxd7 {[%clk 0:02:11]} 21. f5
{[%clk 0:02:31.3]} 21... exf5 {[%clk 0:02:09.2]} 22. gxf5 {[%clk 0:02:26.2]}
22... Qd6+ {[%clk 0:02:08.3]} 23. f4 {[%clk 0:02:26.5]} 23... Rfe8 {[%clk
0:02:04.2]} 24. Qxe8+ {[%clk 0:01:52.8]} 24... Rxe8 {[%clk 0:02:06.1]} 25. Rxe8+
{[%clk 0:01:53.9]} 25... Nf8 {[%clk 0:02:08]} 26. Kg3 {[%clk 0:01:54.9]} 26...
bxc3 {[%clk 0:02:02.2]} 27. bxc3 {[%clk 0:01:55.6]} 27... Qa3 {[%clk 0:02:02.2]}
28. Re3 {[%clk 0:01:20.3]} 28... Qb2 {[%clk 0:01:58.8]} 29. Rfe1 {[%clk
0:01:19.2]} 29... h5 {[%clk 0:01:57.3]} 30. f6 {[%clk 0:01:14.5]} 30... h4+
{[%clk 0:01:47.2]} 31. Kxh4 {[%clk 0:01:06.4]} 31... Qf2+ {[%clk 0:01:46.6]} 32.
Kg4 {[%clk 0:01:07.7]} 32... Ne6 {[%clk 0:01:45.1]} 33. Rxe6 {[%clk 0:00:49.8]}
33... fxe6 {[%clk 0:01:43.7]} 34. Rxe6 {[%clk 0:00:45]} 34... Qg1+ {[%clk
0:01:44.9]} 35. Kf5 {[%clk 0:00:45.5]} 35... Qxb1+ {[%clk 0:01:46.8]} 36. Ke5
{[%clk 0:00:44.9]} 36... Qe1+ {[%clk 0:01:44.2]} 37. Kxd5 {[%clk 0:00:45.5]}
37... Qxc3 {[%clk 0:01:41.8]} 38. Ke5 {[%clk 0:00:37.6]} 38... Qe3+ {[%clk
0:01:37.8]} 39. Kf5 {[%clk 0:00:38.5]} 39... g6+ {[%clk 0:01:36.5]} 0-1

[Event "*** Titled Tuesday Blitz"]
[Site "Chess.com"]
[Date "2018.06.05"]
[Round "2"]
[White "ama18"]
[Black "LuisFSiles"]
[Result "1-0"]
[WhiteElo "2256"]
[BlackElo "2132"]
[TimeControl "180+2"]
[EndTime "13:23:49 PDT"]
[Termination "ama18 won by resignation"]

1. e4 {[%clk 0:02:42.7]} 1... e5 {[%clk 0:02:58.1]} 2. Nf3 {[%clk 0:02:43]} 2...
Nc6 {[%clk 0:02:59]} 3. Bb5 {[%clk 0:02:43.1]} 3... Nf6 {[%clk 0:02:59.5]} 4.
O-O {[%clk 0:02:41.1]} 4... Nxe4 {[%clk 0:02:59.9]} 5. Re1 {[%clk 0:02:41.8]}
5... Nd6 {[%clk 0:03:00.1]} 6. Nxe5 {[%clk 0:02:42.9]} 6... Be7 {[%clk
0:02:59.4]} 7. Bf1 {[%clk 0:02:43.5]} 7... Nxe5 {[%clk 0:02:55.7]} 8. Rxe5
{[%clk 0:02:45.3]} 8... O-O {[%clk 0:02:56.3]} 9. d4 {[%clk 0:02:46.8]} 9... Ne8
{[%clk 0:02:53.2]} 10. c3 {[%clk 0:02:43.5]} 10... d5 {[%clk 0:02:49.1]} 11. Nd2
{[%clk 0:02:42.3]} 11... Bd6 {[%clk 0:02:42.9]} 12. Re1 {[%clk 0:02:41.4]} 12...
Nf6 {[%clk 0:02:37.8]} 13. Nf3 {[%clk 0:02:43.2]} 13... Ne4 {[%clk 0:02:33]} 14.
Bd3 {[%clk 0:02:41.3]} 14... f5 {[%clk 0:02:31.4]} 15. c4 {[%clk 0:02:37]} 15...
c6 {[%clk 0:02:28.8]} 16. cxd5 {[%clk 0:02:27.4]} 16... cxd5 {[%clk 0:02:28.6]}
17. Ne5 {[%clk 0:02:27.2]} 17... Qh4 {[%clk 0:01:29.9]} 18. g3 {[%clk
0:02:06.1]} 18... Qf6 {[%clk 0:01:28.1]} 19. f3 {[%clk 0:02:01.9]} 19... Ng5
{[%clk 0:01:06]} 20. Bxg5 {[%clk 0:01:59.6]} 20... Qxg5 {[%clk 0:01:05.7]} 21.
Qb3 {[%clk 0:01:58.3]} 21... Be6 {[%clk 0:00:58.2]} 22. f4 {[%clk 0:01:58.8]}
22... Qd8 {[%clk 0:00:49.9]} 23. Ng6 {[%clk 0:01:50.5]} 23... Rf6 {[%clk
0:00:42.4]} 24. Ne5 {[%clk 0:01:43.7]} 24... Rc8 {[%clk 0:00:34.7]} 25. Rac1
{[%clk 0:01:42.6]} 25... Qa5 {[%clk 0:00:21.1]} 26. Rxc8+ {[%clk 0:01:04.8]}
26... Bxc8 {[%clk 0:00:21.7]} 27. Nf3 {[%clk 0:01:05.9]} 27... Re6 {[%clk
0:00:21]} 28. Rc1 {[%clk 0:01:01.2]} 28... Bd7 {[%clk 0:00:21.5]} 29. Qxb7
{[%clk 0:00:54]} 29... Qd8 {[%clk 0:00:22.5]} 30. Qxd5 {[%clk 0:00:52.8]} 30...
Kh8 {[%clk 0:00:23.1]} 31. Ng5 {[%clk 0:00:53]} 31... Rg6 {[%clk 0:00:23.9]} 32.
Nf7+ {[%clk 0:00:52.8]} 1-0

[Event "*** Titled Tuesday Blitz"]
[Site "Chess.com"]
[Date "2018.06.05"]
[Round "2"]
[White "DiogenesSinopeus"]
[Black "rasmussvane"]
[Result "0-1"]
[WhiteElo "2424"]
[BlackElo "2582"]
[TimeControl "180+2"]
[EndTime "13:23:57 PDT"]
[Termination "rasmussvane won by resignation"]

1. d4 {[%clk 0:03:00.8]} 1... Nf6 {[%clk 0:03:00.8]} 2. c4 {[%clk 0:03:01.9]}
2... e6 {[%clk 0:03:02.2]} 3. Nc3 {[%clk 0:03:02.9]} 3... Bb4 {[%clk 0:03:03.3]}
4. e3 {[%clk 0:03:03.7]} 4... O-O {[%clk 0:03:04]} 5. Bd3 {[%clk 0:03:04.2]}
5... c5 {[%clk 0:02:58.5]} 6. Nf3 {[%clk 0:03:03.6]} 6... b6 {[%clk 0:02:58.3]}
7. d5 {[%clk 0:03:03.8]} 7... exd5 {[%clk 0:02:57.8]} 8. cxd5 {[%clk 0:03:04.5]}
8... d6 {[%clk 0:02:51.4]} 9. O-O {[%clk 0:03:01.9]} 9... Ba6 {[%clk 0:02:50.5]}
10. e4 {[%clk 0:02:52.2]} 10... Bxd3 {[%clk 0:02:48]} 11. Qxd3 {[%clk
0:02:52.9]} 11... Nbd7 {[%clk 0:02:49.2]} 12. Bg5 {[%clk 0:02:48.2]} 12... Qe7
{[%clk 0:02:43.5]} 13. Nd2 {[%clk 0:02:09.8]} 13... h6 {[%clk 0:02:39.5]} 14.
Bh4 {[%clk 0:02:05.1]} 14... Ne5 {[%clk 0:02:40.3]} 15. Qc2 {[%clk 0:01:47.9]}
15... Ng6 {[%clk 0:02:41.2]} 16. Bg3 {[%clk 0:01:42.9]} 16... Nh5 {[%clk
0:02:42.4]} 17. a3 {[%clk 0:01:35.8]} 17... Bxc3 {[%clk 0:02:42.1]} 18. bxc3
{[%clk 0:01:21.5]} 18... Rae8 {[%clk 0:02:38.3]} 19. Rfe1 {[%clk 0:01:19.9]}
19... Ne5 {[%clk 0:02:33.7]} 20. a4 {[%clk 0:01:15.7]} 20... Qg5 {[%clk
0:02:30.3]} 21. Bxe5 {[%clk 0:01:08.2]} 21... Qxe5 {[%clk 0:02:29.2]} 22. Nc4
{[%clk 0:01:05]} 22... Qf6 {[%clk 0:02:28]} 23. g3 {[%clk 0:00:54.7]} 23... Qg6
{[%clk 0:02:26.3]} 24. Kh1 {[%clk 0:00:46.8]} 24... Re7 {[%clk 0:02:23.1]} 25.
Re2 {[%clk 0:00:44.4]} 25... Rd8 {[%clk 0:01:48.8]} 26. Rae1 {[%clk 0:00:42.2]}
26... Nf6 {[%clk 0:01:50.3]} 27. Qd3 {[%clk 0:00:35.6]} 27... Nd7 {[%clk
0:01:44.6]} 28. f4 {[%clk 0:00:34.6]} 28... a6 {[%clk 0:01:44.3]} 29. Qf3 {[%clk
0:00:32.8]} 29... b5 {[%clk 0:01:43.9]} 30. axb5 {[%clk 0:00:34.7]} 30... axb5
{[%clk 0:01:45.2]} 31. Na5 {[%clk 0:00:36.2]} 31... Rde8 {[%clk 0:01:44.9]} 32.
Nc6 {[%clk 0:00:34.9]} 32... c4 {[%clk 0:01:45.7]} 33. Nxe7+ {[%clk 0:00:35.4]}
33... Rxe7 {[%clk 0:01:46.5]} 34. e5 {[%clk 0:00:33.1]} 34... Nc5 {[%clk
0:01:43.1]} 35. exd6 {[%clk 0:00:32.1]} 35... Rxe2 {[%clk 0:01:43.3]} 36. Qxe2
{[%clk 0:00:26.5]} 36... Qxd6 {[%clk 0:01:44.7]} 37. Qe5 {[%clk 0:00:26.5]}
37... Qg6 {[%clk 0:01:11.3]} 38. d6 {[%clk 0:00:21.7]} 38... Nd3 {[%clk
0:01:06.9]} 39. Qe8+ {[%clk 0:00:22.5]} 39... Kh7 {[%clk 0:01:07.8]} 40. Qe4
{[%clk 0:00:15.6]} 40... Nf2+ {[%clk 0:01:07]} 0-1

[Event "*** Titled Tuesday Blitz"]
[Site "Chess.com"]
[Date "2018.06.05"]
[Round "2"]
[White "Doraemon7"]
[Black "korason34"]
[Result "0-1"]
[WhiteElo "2407"]
[BlackElo "2465"]
[TimeControl "180+2"]
[EndTime "13:24:00 PDT"]
[Termination "korason34 won by resignation"]

1. d4 {[%clk 0:03:01.8]} 1... Nf6 {[%clk 0:03:00.3]} 2. c4 {[%clk 0:03:00.3]}
2... e6 {[%clk 0:03:01.4]} 3. g3 {[%clk 0:02:57]} 3... d5 {[%clk 0:02:59.5]} 4.
Nf3 {[%clk 0:02:56.6]} 4... Bb4+ {[%clk 0:02:59.9]} 5. Bd2 {[%clk 0:02:56.9]}
5... Be7 {[%clk 0:03:00]} 6. Bg2 {[%clk 0:02:56.7]} 6... c6 {[%clk 0:02:59.3]}
7. O-O {[%clk 0:02:54.8]} 7... b6 {[%clk 0:03:00.5]} 8. Qc2 {[%clk 0:02:55]}
8... Bb7 {[%clk 0:03:01.3]} 9. Rd1 {[%clk 0:02:53.6]} 9... Nbd7 {[%clk
0:03:01.6]} 10. b3 {[%clk 0:02:52.9]} 10... Rc8 {[%clk 0:03:01.6]} 11. Nc3
{[%clk 0:02:50.9]} 11... b5 {[%clk 0:03:01.9]} 12. c5 {[%clk 0:02:50.7]} 12...
O-O {[%clk 0:02:56.2]} 13. e4 {[%clk 0:02:51.6]} 13... b4 {[%clk 0:02:53.2]} 14.
e5 {[%clk 0:02:46.2]} 14... bxc3 {[%clk 0:02:49.4]} 15. exf6 {[%clk 0:02:46.7]}
15... Nxf6 {[%clk 0:02:29.5]} 16. Bxc3 {[%clk 0:02:44.7]} 16... Ne4 {[%clk
0:02:29.1]} 17. Bb2 {[%clk 0:02:42]} 17... Ba6 {[%clk 0:02:18.9]} 18. Ne5 {[%clk
0:02:41.6]} 18... Nf6 {[%clk 0:02:19.6]} 19. Bc3 {[%clk 0:02:26.6]} 19... Nd7
{[%clk 0:02:18.3]} 20. b4 {[%clk 0:02:15.8]} 20... Nxe5 {[%clk 0:02:08]} 21.
dxe5 {[%clk 0:02:17.7]} 21... Bc4 {[%clk 0:02:08.1]} 22. Bf1 {[%clk 0:02:15.8]}
22... Bxf1 {[%clk 0:02:06.7]} 23. Rxf1 {[%clk 0:02:15.2]} 23... Qc7 {[%clk
0:02:05.3]} 24. Rab1 {[%clk 0:02:08.8]} 24... Rb8 {[%clk 0:01:50.6]} 25. f4
{[%clk 0:01:58.8]} 25... f5 {[%clk 0:01:40.6]} 26. exf6 {[%clk 0:01:28.3]} 26...
Bxf6 {[%clk 0:01:41.4]} 27. Rfe1 {[%clk 0:01:27.8]} 27... d4 {[%clk 0:01:41.5]}
28. Ba1 {[%clk 0:01:25.3]} 28... Qd7 {[%clk 0:01:15.9]} 29. Qc4 {[%clk
0:01:16.9]} 29... Rfe8 {[%clk 0:01:12.6]} 30. Rbd1 {[%clk 0:00:49]} 30... Rbd8
{[%clk 0:01:07.3]} 31. f5 {[%clk 0:00:36.3]} 31... Kf7 {[%clk 0:00:56.1]} 32.
Re4 {[%clk 0:00:29.8]} 32... Qd5 {[%clk 0:00:45.5]} 33. Qxd5 {[%clk 0:00:21.3]}
33... Rxd5 {[%clk 0:00:40.9]} 34. Bxd4 {[%clk 0:00:20.6]} 34... e5 {[%clk
0:00:38.3]} 0-1

[Event "*** Titled Tuesday Blitz"]
[Site "Chess.com"]
[Date "2018.06.05"]
[Round "2"]
[White "INDIAN-ELEPHANT"]
[Black "Parhamov"]
[Result "0-1"]
[WhiteElo "2602"]
[BlackElo "2831"]
[TimeControl "180+2"]
[EndTime "13:24:01 PDT"]
[Termination "Parhamov won by resignation"]

1. d4 {[%clk 0:03:01.9]} 1... g6 {[%clk 0:03:00.4]} 2. e4 {[%clk 0:03:01.4]}
2... Bg7 {[%clk 0:03:01.5]} 3. f4 {[%clk 0:02:59.4]} 3... e6 {[%clk 0:03:01.8]}
4. Nf3 {[%clk 0:02:59.5]} 4... Ne7 {[%clk 0:03:03]} 5. c4 {[%clk 0:02:54]} 5...
d5 {[%clk 0:03:03.4]} 6. cxd5 {[%clk 0:02:52.1]} 6... exd5 {[%clk 0:03:04.2]} 7.
e5 {[%clk 0:02:53.5]} 7... O-O {[%clk 0:03:05.1]} 8. Nc3 {[%clk 0:02:53.4]} 8...
b6 {[%clk 0:03:03.5]} 9. Bd3 {[%clk 0:02:46.9]} 9... c5 {[%clk 0:03:04.1]} 10.
O-O {[%clk 0:02:47.1]} 10... Nbc6 {[%clk 0:03:05.1]} 11. Be3 {[%clk 0:02:39.4]}
11... c4 {[%clk 0:03:02.8]} 12. Bc2 {[%clk 0:02:30.8]} 12... a6 {[%clk
0:03:00.5]} 13. h3 {[%clk 0:02:20.8]} 13... Bf5 {[%clk 0:03:00.4]} 14. g4 {[%clk
0:02:19.7]} 14... Bxc2 {[%clk 0:03:01.1]} 15. Qxc2 {[%clk 0:02:21.3]} 15... b5
{[%clk 0:03:01.7]} 16. f5 {[%clk 0:02:19.4]} 16... f6 {[%clk 0:02:45.2]} 17. e6
{[%clk 0:02:12.4]} 17... Kh8 {[%clk 0:02:37.9]} 18. Nh4 {[%clk 0:02:06.6]} 18...
gxf5 {[%clk 0:02:34.8]} 19. gxf5 {[%clk 0:02:03.9]} 19... Rg8 {[%clk 0:02:35.6]}
20. Kh1 {[%clk 0:02:04.4]} 20... Qf8 {[%clk 0:02:32.2]} 21. Qd2 {[%clk
0:02:02.2]} 21... b4 {[%clk 0:02:30.7]} 22. Ne2 {[%clk 0:02:02.2]} 22... Qe8
{[%clk 0:02:28]} 23. Nf4 {[%clk 0:01:58.7]} 23... Bh6 {[%clk 0:02:28.8]} 24.
Nfg6+ {[%clk 0:01:41.7]} 24... hxg6 {[%clk 0:02:25.3]} 25. Bxh6 {[%clk 0:01:42]}
25... g5 {[%clk 0:02:25.3]} 26. Qd1 {[%clk 0:00:54.4]} 26... Kh7 {[%clk
0:02:17.7]} 27. Ng6 {[%clk 0:00:39.2]} 27... Nxg6 {[%clk 0:02:16.3]} 28. Bxg5
{[%clk 0:00:35.7]} 28... Nge5 {[%clk 0:01:33.7]} 29. Bxf6 {[%clk 0:00:35.7]}
29... Nd3 {[%clk 0:01:29.8]} 30. Qf3 {[%clk 0:00:29.5]} 30... Rf8 {[%clk
0:01:04.1]} 31. Qg4 {[%clk 0:00:30]} 31... Rxf6 {[%clk 0:01:02.1]} 32. Rf3
{[%clk 0:00:24.2]} 32... Qg8 {[%clk 0:00:58.2]} 33. Rg1 {[%clk 0:00:18.6]} 33...
Qxg4 {[%clk 0:00:50.1]} 34. hxg4 {[%clk 0:00:19.5]} 34... Nxd4 {[%clk
0:00:51.2]} 35. Rh3+ {[%clk 0:00:18.1]} 35... Kg7 {[%clk 0:00:52.1]} 36. Rg2
{[%clk 0:00:19.3]} 36... Nf4 {[%clk 0:00:52.7]} 0-1

[Event "*** Titled Tuesday Blitz"]
[Site "Chess.com"]
[Date "2018.06.05"]
[Round "2"]
[White "bascheyaro"]
[Black "nurmiTV"]
[Result "1-0"]
[WhiteElo "2680"]
[BlackElo "2498"]
[TimeControl "180+2"]
[EndTime "13:24:05 PDT"]
[Termination "bascheyaro won by resignation"]

1. d4 {[%clk 0:03:01.5]} 1... Nf6 {[%clk 0:03:00]} 2. Nf3 {[%clk 0:03:02.6]}
2... e6 {[%clk 0:03:01.5]} 3. Bf4 {[%clk 0:03:03.7]} 3... b6 {[%clk 0:03:02.5]}
4. e3 {[%clk 0:03:05]} 4... Bb7 {[%clk 0:03:04.1]} 5. Be2 {[%clk 0:03:06.2]}
5... Be7 {[%clk 0:03:05.7]} 6. O-O {[%clk 0:03:07.4]} 6... O-O {[%clk
0:03:07.4]} 7. h3 {[%clk 0:03:08.5]} 7... d6 {[%clk 0:03:08.9]} 8. a4 {[%clk
0:03:09.5]} 8... c5 {[%clk 0:03:09.2]} 9. c3 {[%clk 0:03:10.4]} 9... Nc6 {[%clk
0:03:09.8]} 10. Na3 {[%clk 0:03:10.7]} 10... a6 {[%clk 0:02:58.4]} 11. Qb3
{[%clk 0:03:09.9]} 11... d5 {[%clk 0:02:52.9]} 12. Ne5 {[%clk 0:02:52.4]} 12...
Nxe5 {[%clk 0:02:42.9]} 13. Bxe5 {[%clk 0:02:53.4]} 13... Nd7 {[%clk 0:02:44.3]}
14. Bg3 {[%clk 0:02:53.3]} 14... Bc6 {[%clk 0:02:30.4]} 15. Nb1 {[%clk
0:02:48.1]} 15... c4 {[%clk 0:02:25.9]} 16. Qc2 {[%clk 0:02:49.1]} 16... b5
{[%clk 0:02:27.5]} 17. a5 {[%clk 0:02:17.3]} 17... b4 {[%clk 0:02:18]} 18. Nd2
{[%clk 0:02:18.3]} 18... Ra7 {[%clk 0:02:09.5]} 19. e4 {[%clk 0:02:18.3]} 19...
Rb7 {[%clk 0:02:05.7]} 20. exd5 {[%clk 0:02:16.4]} 20... exd5 {[%clk 0:02:03.2]}
21. Bf3 {[%clk 0:02:17.4]} 21... Qc8 {[%clk 0:01:57.7]} 22. Rfe1 {[%clk
0:02:18]} 22... Nf6 {[%clk 0:01:53.8]} 23. Rxe7 {[%clk 0:02:11.6]} 23... Rxe7
{[%clk 0:01:51.2]} 24. Bd6 {[%clk 0:02:12.8]} 24... b3 {[%clk 0:01:43.5]} 25.
Qc1 {[%clk 0:01:56.7]} 25... Rfe8 {[%clk 0:01:42.3]} 26. Bxe7 {[%clk 0:01:58.1]}
26... Rxe7 {[%clk 0:01:44.2]} 27. Nf1 {[%clk 0:01:59.5]} 27... Qc7 {[%clk
0:01:35.5]} 28. Qg5 {[%clk 0:01:59.2]} 28... h6 {[%clk 0:01:34.8]} 29. Qg3
{[%clk 0:01:58.7]} 29... Qd8 {[%clk 0:01:32.4]} 30. Ne3 {[%clk 0:01:59.4]} 30...
Ne4 {[%clk 0:01:13.7]} 31. Qf4 {[%clk 0:01:53.5]} 31... Nxc3 {[%clk 0:00:55.6]}
32. bxc3 {[%clk 0:01:50.4]} 32... b2 {[%clk 0:00:53.1]} 33. Rb1 {[%clk 0:01:51]}
33... Rb7 {[%clk 0:00:51.1]} 34. Nxc4 {[%clk 0:01:50.2]} 34... dxc4 {[%clk
0:00:40.2]} 35. Bxc6 {[%clk 0:01:50.8]} 35... Rb3 {[%clk 0:00:42.1]} 36. Qd2
{[%clk 0:01:51.3]} 36... Qxa5 {[%clk 0:00:40.9]} 37. d5 {[%clk 0:01:52]} 37...
Qa2 {[%clk 0:00:36.7]} 38. Qd1 {[%clk 0:01:52.5]} 38... Rxc3 {[%clk 0:00:35.6]}
39. Kh2 {[%clk 0:01:46.1]} 39... Rd3 {[%clk 0:00:35.3]} 40. Qc2 {[%clk
0:01:47.5]} 40... Rb3 {[%clk 0:00:17.5]} 41. d6 {[%clk 0:01:43.7]} 41... Rb8
{[%clk 0:00:17.1]} 42. d7 {[%clk 0:01:43.2]} 42... Qa3 {[%clk 0:00:17]} 43. Qxc4
{[%clk 0:01:41.1]} 43... a5 {[%clk 0:00:17.4]} 44. g3 {[%clk 0:01:38.4]} 44...
Qa1 {[%clk 0:00:16.5]} 45. Qd3 {[%clk 0:01:38.4]} 45... a4 {[%clk 0:00:17.5]}
46. d8=Q+ {[%clk 0:01:38.9]} 46... Rxd8 {[%clk 0:00:19]} 47. Qxd8+ {[%clk
0:01:40.5]} 47... Kh7 {[%clk 0:00:20.6]} 48. Be4+ {[%clk 0:01:41.6]} 48... g6
{[%clk 0:00:22.2]} 49. Qf6 {[%clk 0:01:42.1]} 49... Qa2 {[%clk 0:00:21.8]} 50.
Rd1 {[%clk 0:01:42]} 50... Qe6 {[%clk 0:00:19.1]} 51. Bxg6+ {[%clk 0:01:43.3]}
1-0

[Event "*** Titled Tuesday Blitz"]
[Site "Chess.com"]
[Date "2018.06.05"]
[Round "2"]
[White "leoo2001"]
[Black "Alexandr_Predke"]
[Result "1-0"]
[WhiteElo "2150"]
[BlackElo "2638"]
[TimeControl "180+2"]
[EndTime "13:24:05 PDT"]
[Termination "leoo2001 won by resignation"]

1. e4 {[%clk 0:03:01.9]} 1... e5 {[%clk 0:02:59.9]} 2. Bc4 {[%clk 0:03:00.7]}
2... Nc6 {[%clk 0:03:01.6]} 3. d3 {[%clk 0:03:01.4]} 3... Nf6 {[%clk 0:03:01.1]}
4. Nc3 {[%clk 0:03:01.8]} 4... Be7 {[%clk 0:02:58.8]} 5. f4 {[%clk 0:02:56.1]}
5... d6 {[%clk 0:02:51.2]} 6. Nf3 {[%clk 0:02:56.5]} 6... Bg4 {[%clk 0:02:51]}
7. O-O {[%clk 0:02:54.3]} 7... O-O {[%clk 0:02:42.6]} 8. h3 {[%clk 0:02:54]}
8... Bxf3 {[%clk 0:02:43]} 9. Qxf3 {[%clk 0:02:55.2]} 9... Nd4 {[%clk
0:02:43.8]} 10. Qf2 {[%clk 0:02:55.2]} 10... c6 {[%clk 0:02:44.8]} 11. fxe5
{[%clk 0:02:50.1]} 11... dxe5 {[%clk 0:02:44.9]} 12. Be3 {[%clk 0:02:42.2]}
12... b5 {[%clk 0:02:43]} 13. Bb3 {[%clk 0:02:43]} 13... a5 {[%clk 0:02:44.1]}
14. a3 {[%clk 0:02:36.7]} 14... a4 {[%clk 0:02:42.2]} 15. Ba2 {[%clk 0:02:36.9]}
15... Bc5 {[%clk 0:01:59.1]} 16. Ne2 {[%clk 0:02:34.8]} 16... Nxe2+ {[%clk
0:01:51.8]} 17. Qxe2 {[%clk 0:02:35.8]} 17... Qb6 {[%clk 0:01:45.7]} 18. Bxc5
{[%clk 0:02:30]} 18... Qxc5+ {[%clk 0:01:47.1]} 19. Kh2 {[%clk 0:02:31.2]} 19...
Ne8 {[%clk 0:01:24.7]} 20. c3 {[%clk 0:02:25.6]} 20... Qe7 {[%clk 0:01:23]} 21.
Rf2 {[%clk 0:02:22.8]} 21... Nd6 {[%clk 0:01:23.5]} 22. Raf1 {[%clk 0:02:23.1]}
22... Kh8 {[%clk 0:01:24.2]} 23. Qe3 {[%clk 0:02:24.4]} 23... f6 {[%clk
0:01:23.1]} 24. g4 {[%clk 0:02:24.7]} 24... Qa7 {[%clk 0:01:01.6]} 25. Qxa7
{[%clk 0:02:21.2]} 25... Rxa7 {[%clk 0:01:02.7]} 26. g5 {[%clk 0:02:22.6]} 26...
Ne8 {[%clk 0:01:02.4]} 27. h4 {[%clk 0:02:13.6]} 27... Rd7 {[%clk 0:01:00]} 28.
Rf3 {[%clk 0:02:14.9]} 28... h6 {[%clk 0:00:45.3]} 29. Kg2 {[%clk 0:02:14.8]}
29... Rd6 {[%clk 0:00:42.9]} 30. Kf2 {[%clk 0:02:14.8]} 30... g6 {[%clk
0:00:35]} 31. Ke3 {[%clk 0:02:13.2]} 31... Kg7 {[%clk 0:00:35.2]} 32. d4 {[%clk
0:02:13.7]} 32... exd4+ {[%clk 0:00:34.3]} 33. cxd4 {[%clk 0:02:15]} 33... Rd7
{[%clk 0:00:28.7]} 34. Rc1 {[%clk 0:02:03.2]} 34... Rc7 {[%clk 0:00:28.2]} 35.
e5 {[%clk 0:02:03.2]} 35... hxg5 {[%clk 0:00:27.3]} 36. hxg5 {[%clk 0:01:59.2]}
36... fxg5 {[%clk 0:00:24.6]} 37. Rxf8 {[%clk 0:01:54.4]} 37... Kxf8 {[%clk
0:00:26.1]} 38. Bb1 {[%clk 0:01:55.7]} 38... Rh7 {[%clk 0:00:06.5]} 39. Rxc6
{[%clk 0:01:54.7]} 39... Rh3+ {[%clk 0:00:07.3]} 40. Kd2 {[%clk 0:01:54.7]}
40... Rh2+ {[%clk 0:00:07.5]} 41. Kc3 {[%clk 0:01:55.1]} 41... g4 {[%clk
0:00:08.7]} 42. Rxg6 {[%clk 0:01:54.3]} 42... Rh3+ {[%clk 0:00:09.4]} 43. Bd3
{[%clk 0:01:54.8]} 43... g3 {[%clk 0:00:10.6]} 44. d5 {[%clk 0:01:55.6]} 44...
Ng7 {[%clk 0:00:10.6]} 45. d6 {[%clk 0:01:55]} 45... Nh5 {[%clk 0:00:09.3]} 46.
e6 {[%clk 0:01:53.2]} 46... Nf4 {[%clk 0:00:10.4]} 47. Rf6+ {[%clk 0:01:52.9]}
1-0

[Event "*** Titled Tuesday Blitz"]
[Site "Chess.com"]
[Date "2018.06.05"]
[Round "2"]
[White "mishanick"]
[Black "GMBenjaminBok"]
[Result "1-0"]
[WhiteElo "2840"]
[BlackElo "2569"]
[TimeControl "180+2"]
[EndTime "13:24:08 PDT"]
[Termination "mishanick won by resignation"]

1. d4 {[%clk 0:03:00.3]} 1... d5 {[%clk 0:02:54.1]} 2. c4 {[%clk 0:03:01.1]}
2... e6 {[%clk 0:02:55.3]} 3. Nf3 {[%clk 0:03:02.3]} 3... Nf6 {[%clk 0:02:56.1]}
4. Nc3 {[%clk 0:03:03.3]} 4... c6 {[%clk 0:02:57]} 5. Bg5 {[%clk 0:03:03.3]}
5... h6 {[%clk 0:02:57.7]} 6. Bh4 {[%clk 0:03:04.1]} 6... dxc4 {[%clk
0:02:57.4]} 7. e4 {[%clk 0:03:04.8]} 7... g5 {[%clk 0:02:58.9]} 8. Bg3 {[%clk
0:03:05.7]} 8... b5 {[%clk 0:03:00.3]} 9. Be2 {[%clk 0:03:05.5]} 9... Bb7 {[%clk
0:03:00.9]} 10. h4 {[%clk 0:03:05.7]} 10... g4 {[%clk 0:03:01.4]} 11. Ne5 {[%clk
0:03:06.3]} 11... Nbd7 {[%clk 0:03:02.8]} 12. Nxg4 {[%clk 0:03:04.1]} 12... Nxg4
{[%clk 0:02:41]} 13. Bxg4 {[%clk 0:03:06]} 13... Nf6 {[%clk 0:02:42.1]} 14. Bf3
{[%clk 0:02:55.2]} 14... Rg8 {[%clk 0:02:26.1]} 15. Qd2 {[%clk 0:02:49.9]} 15...
Qb6 {[%clk 0:02:25.4]} 16. Be5 {[%clk 0:02:47.8]} 16... Nd7 {[%clk 0:02:24]} 17.
Bf4 {[%clk 0:02:46.3]} 17... O-O-O {[%clk 0:02:18.9]} 18. Rd1 {[%clk 0:02:43.8]}
18... Be7 {[%clk 0:01:39]} 19. Bxh6 {[%clk 0:02:03]} 19... c5 {[%clk 0:01:34.8]}
20. Be3 {[%clk 0:01:24.6]} 20... cxd4 {[%clk 0:01:34.9]} 21. Bxd4 {[%clk
0:01:23.4]} 21... Bc5 {[%clk 0:01:27.4]} 22. Qe3 {[%clk 0:01:04.5]} 22... e5
{[%clk 0:01:16.6]} 23. Bxc5 {[%clk 0:01:04.4]} 23... Nxc5 {[%clk 0:01:17.2]} 24.
Rxd8+ {[%clk 0:01:04.3]} 24... Rxd8 {[%clk 0:01:16.4]} 25. O-O {[%clk
0:01:03.4]} 25... Nd3 {[%clk 0:01:08.4]} 26. Qxb6 {[%clk 0:01:03.8]} 26... axb6
{[%clk 0:01:10.3]} 27. Nxb5 {[%clk 0:01:03.8]} 27... Nxb2 {[%clk 0:00:55.4]} 28.
Rc1 {[%clk 0:01:03.5]} 28... Ba6 {[%clk 0:00:52.3]} 29. Nc3 {[%clk 0:01:03.4]}
29... Rd2 {[%clk 0:00:44.5]} 30. h5 {[%clk 0:00:53.2]} 30... Nd3 {[%clk
0:00:15.5]} 31. Rb1 {[%clk 0:00:53.3]} 31... Rc2 {[%clk 0:00:10.4]} 32. h6
{[%clk 0:00:52.1]} 32... Nf4 {[%clk 0:00:09.7]} 33. Nd5 {[%clk 0:00:48.9]} 33...
Ng6 {[%clk 0:00:10.1]} 34. Rxb6 {[%clk 0:00:48.5]} 34... Bb7 {[%clk 0:00:03.8]}
35. Rxg6 {[%clk 0:00:48.1]} 35... fxg6 {[%clk 0:00:02.9]} 36. h7 {[%clk
0:00:49.1]} 1-0